fUSD/lending_fUSD_20260610
["ID","MTS","AMOUNT","RATE_DAILY","PERIOD"]
[424693448,1781056244000,-630.8,0.00015,2]
[424693440,1781056244000,-303.06988692,0.00014747,2]
[424693442,1781056244000,-755552.09806995,0.00015,2]
[424693441,1781056244000,-2893.43011308,0.00015,2]
[424693444,1781056244000,-2660.01694031,0.00013421,2]
[424693445,1781056244000,-454.0,0.00013324,2]
[424693446,1781056244000,-5643.39683541,0.00013421,2]
[424693447,1781056244000,-433065.60828365,0.00015,2]
[424693443,1781056244000,-3780.55,0.00015,2]
[424693455,1781056246000,-2508.7459,0.00015,2]
[424693454,1781056246000,-9558.07331968,0.00015,2]
[424693452,1781056246000,-300.32191475,0.00014371,2]
[424693451,1781056246000,-300.32191475,0.0001408,2]
[424693449,1781056246000,-300.32191475,0.00013376,2]
[424693450,1781056246000,-8303.41377572,0.00013606,2]
[424693453,1781056246000,-300.32191475,0.00014595,2]
[424693456,1781056250000,151.0,0.00030137,120]
[424693460,1781056400000,513.461496,0.00029942,120]
[424693461,1781056415000,1000.0,0.00029942,120]
[424693462,1781056622000,558.21,0.00030137,120]
[424693463,1781056688000,325.78071774,0.00030136,120]
[424693468,1781056743000,1789.87,0.00030136,120]
[424693472,1781057025000,157.5753515,0.0003013,120]
[424693473,1781057063000,1000.0,0.00030137,120]
[424693475,1781057102000,1000.0,0.00030137,120]
[424693477,1781057111000,1000.0,0.00030137,120]
[424693478,1781057127000,1116.82681,0.00030137,120]
[424693480,1781057192000,-150.0,9.825e-05,2]
[424693479,1781057192000,-150.0,9.675e-05,2]
[424693481,1781057192000,-153.72,9.974e-05,2]
[424693482,1781057192000,-12.44597715,9.989e-05,2]
[424693483,1781057273000,1000.0,0.00029452,120]
[424693487,1781057431000,-302.55402285,9.989e-05,2]
[424693517,1781057432000,-166.66,0.00012718,2]
[424693502,1781057432000,-768.0,0.00011978,2]
[424693508,1781057432000,-320.56,0.00012377,2]
[424693509,1781057432000,-150.0,0.00012429,2]
[424693506,1781057432000,-486.0,0.00012329,2]
[424693510,1781057432000,-250.0,0.00012457,2]
[424693512,1781057432000,-527.92,0.00012468,2]
[424693513,1781057432000,-166.66,0.00012476,2]
[424693514,1781057432000,-160.0,0.00012645,2]
[424693515,1781057432000,-405.86,0.00012659,2]
[424693505,1781057432000,-2000.0,0.00012312,2]
[424693516,1781057432000,-150.0,0.00012704,2]
[424693521,1781057432000,-7883.55661078,0.00013035,2]
[424693511,1781057432000,-174.25,0.00012468,2]
[424693504,1781057432000,-166.66,0.00012234,2]
[424693494,1781057432000,-315.0,9.989e-05,2]
[424693501,1781057432000,-166.66,0.00011749,2]
[424693503,1781057432000,-166.66,0.00011992,2]
[424693500,1781057432000,-166.66,0.00011507,2]
[424693498,1781057432000,-268.53363503,9.989e-05,2]
[424693496,1781057432000,-315.0,9.989e-05,2]
[424693495,1781057432000,-315.0,9.989e-05,2]
[424693499,1781057432000,-215.89329178,0.00010029,2]
[424693497,1781057432000,-500.0,9.989e-05,2]
[424693493,1781057432000,-315.0,9.989e-05,2]
[424693492,1781057432000,-304.80210723,9.989e-05,2]
[424693490,1781057432000,-315.0,9.989e-05,2]
[424693491,1781057432000,-10.19789277,9.989e-05,2]
[424693489,1781057432000,-315.0,9.989e-05,2]
[424693488,1781057432000,-315.0,9.989e-05,2]
[424693507,1781057432000,-166.66,0.00012346,2]
[424693520,1781057432000,-2500.0,0.00013024,2]
[424693527,1781057432000,-500.0,0.00013123,2]
[424693518,1781057432000,-333.03256386,0.00012899,2]
[424693519,1781057432000,-405.86,0.00012975,2]
[424693552,1781057432000,-284.60163902,0.00013124,2]
[424693551,1781057432000,-6942.25500372,0.00013124,2]
[424693550,1781057432000,-9626.48866229,0.00013124,2]
[424693549,1781057432000,-1320.3139644,0.00013124,2]
[424693553,1781057432000,-4644.43663515,0.00013124,2]
[424693548,1781057432000,-679.6860356,0.00013124,2]
[424693547,1781057432000,-250.0,0.00013124,2]
[424693544,1781057432000,-342.68982818,0.00013124,2]
[424693545,1781057432000,-1471.73737794,0.00013124,2]
[424693543,1781057432000,-164.00815963,0.00013124,2]
[424693541,1781057432000,-2.99669978,0.00013124,2]
[424693542,1781057432000,-693.69606344,0.00013124,2]
[424693540,1781057432000,-785.97577219,0.00013124,2]
[424693539,1781057432000,-403.08253075,0.00013124,2]
[424693546,1781057432000,-19.64328915,0.00013124,2]
[424693534,1781057432000,-1030.13421599,0.00013124,2]
[424693523,1781057432000,-150.0,0.00013122,2]
[424693536,1781057432000,-1503.14592439,0.00013124,2]
[424693532,1781057432000,-240.67988658,0.00013124,2]
[424693522,1781057432000,-1239.80561329,0.00013114,2]
[424693531,1781057432000,-97.14770069,0.00013123,2]
[424693524,1781057432000,-397.97871834,0.00013123,2]
[424693526,1781057432000,-500.0,0.00013123,2]
[424693525,1781057432000,-102.02128166,0.00013123,2]
[424693529,1781057432000,-354.92892381,0.00013123,2]
[424693528,1781057432000,-163.79487688,0.00013123,2]
[424693533,1781057432000,-150.65658139,0.00013124,2]
[424693538,1781057432000,-7695.09131767,0.00013124,2]
[424693535,1781057432000,-400.97149276,0.00013124,2]
[424693537,1781057432000,-2072.67693804,0.00013124,2]
[424693580,1781057438000,-611.0,0.00013425,2]
[424693570,1781057438000,-442.0,0.00013371,2]
[424693575,1781057438000,-611.0,0.00013425,2]
[424693577,1781057438000,-611.0,0.00013425,2]
[424693573,1781057438000,-611.0,0.00013425,2]
[424693578,1781057438000,-611.0,0.00013425,2]
[424693579,1781057438000,-611.0,0.00013425,2]
[424693589,1781057438000,-611.0,0.00013425,2]
[424693582,1781057438000,-611.0,0.00013425,2]
[424693584,1781057438000,-611.0,0.00013425,2]
[424693588,1781057438000,-611.0,0.00013425,2]
[424693585,1781057438000,-611.0,0.00013425,2]
[424693587,1781057438000,-611.0,0.00013425,2]
[424693592,1781057438000,-611.0,0.00013425,2]
[424693574,1781057438000,-611.0,0.00013425,2]
[424693583,1781057438000,-611.0,0.00013425,2]
[424693572,1781057438000,-303.06988692,0.00013412,2]
[424693557,1781057438000,-397.55855933,0.00012663,2]
[424693581,1781057438000,-611.0,0.00013425,2]
[424693590,1781057438000,-611.0,0.00013425,2]
[424693556,1781057438000,-407.86461,0.00012663,2]
[424693559,1781057438000,-1343.82,0.00012663,2]
[424693558,1781057438000,-6936.65,0.00012663,2]
[424693561,1781057438000,-1478502.21805982,0.00013124,2]
[424693563,1781057438000,-951.87,0.00013139,2]
[424693560,1781057438000,-96742.00026707,0.00012663,2]
[424693562,1781057438000,-166.67,0.00013135,2]
[424693565,1781057438000,-1084.70247111,0.00013223,3]
[424693568,1781057438000,-14041.73477318,0.00013321,2]
[424693566,1781057438000,-7883.55661075,0.00013242,2]
[424693567,1781057438000,-405.86,0.00013292,2]
[424693564,1781057438000,-160.22,0.00013178,2]
[424693569,1781057438000,-459.0,0.00013324,2]
[424693571,1781057438000,-445.0,0.00013371,2]
[424693576,1781057438000,-611.0,0.00013425,2]
[424693586,1781057438000,-611.0,0.00013425,2]
[424693631,1781057438000,-500.0,0.00013698,2]
[424693593,1781057438000,-611.0,0.00013425,2]
[424693617,1781057438000,-500.0,0.00013698,2]
[424693658,1781057438000,-7883.55661075,0.00013864,2]
[424693629,1781057438000,-500.0,0.00013698,2]
[424693635,1781057438000,-500.0,0.00013698,2]
[424693639,1781057438000,-500.0,0.00013698,2]
[424693637,1781057438000,-500.0,0.00013698,2]
[424693641,1781057438000,-500.0,0.00013698,2]
[424693654,1781057438000,-2000.0,0.00013852,2]
[424693633,1781057438000,-500.0,0.00013698,2]
[424693645,1781057438000,-200.0,0.00013699,2]
[424693649,1781057438000,-14041.73477318,0.00013716,2]
[424693647,1781057438000,-435.57723832,0.00013699,2]
[424693656,1781057438000,-611.86111296,0.00013857,2]
[424693651,1781057438000,-500.0,0.00013808,2]
[424693591,1781057438000,-611.0,0.00013425,2]
[424693614,1781057438000,-500.0,0.00013698,2]
[424693627,1781057438000,-500.0,0.00013698,2]
[424693643,1781057438000,-377.75456704,0.00013698,2]
[424693623,1781057438000,-500.0,0.00013698,2]
[424693625,1781057438000,-500.0,0.00013698,2]
[424693595,1781057438000,-611.0,0.00013425,2]
[424693594,1781057438000,-611.0,0.00013425,2]
[424693596,1781057438000,-634.8902219,0.00013425,2]
[424693604,1781057438000,-14041.73477318,0.00013519,2]
[424693598,1781057438000,-300.32191475,0.00013429,2]
[424693608,1781057438000,-7883.55661075,0.00013657,2]
[424693606,1781057438000,-405.86,0.00013608,2]
[424693611,1781057438000,-415.56943482,0.00013685,2]
[424693600,1781057438000,-7883.55661075,0.00013449,2]
[424693602,1781057438000,-768.0,0.00013475,2]
[424693613,1781057438000,-451.0,0.00013693,2]
[424693612,1781057438000,-452.0,0.00013693,2]
[424693618,1781057438000,-500.0,0.00013698,2]
[424693610,1781057438000,-277.04628986,0.00013685,2]
[424693621,1781057438000,-500.0,0.00013698,2]
[424693711,1781057439000,-14041.73477318,0.00014505,2]
[424693731,1781057439000,-153.40542187,0.00014687,2]
[424693729,1781057439000,-703.14928871,0.00014687,2]
[424693718,1781057439000,-350.0,0.00014616,2]
[424693715,1781057439000,-1500.0,0.00014563,2]
[424693720,1781057439000,-6853.477468,0.00014651,2]
[424693733,1781057439000,-7883.55661075,0.00014693,2]
[424693724,1781057439000,-2714.31966893,0.00014687,2]
[424693740,1781057439000,-951.87,0.00014782,2]
[424693756,1781057439000,-500.0,0.00014846,2]
[424693735,1781057439000,-3631.1574837,0.000147,2]
[424693743,1781057439000,-300.32191475,0.00014784,2]
[424693727,1781057439000,-966.16174053,0.00014687,2]
[424693745,1781057439000,-152.0,0.0001481,7]
[424693749,1781057439000,-199.5,0.00014825,2]
[424693751,1781057439000,-150.0,0.00014826,2]
[424693754,1781057439000,-300.32191475,0.00014843,2]
[424693764,1781057439000,-237357.65461284,0.0001485,2]
[424693722,1781057439000,-303.06988692,0.00014674,2]
[424693738,1781057439000,-14041.73477318,0.00014703,2]
[424693706,1781057439000,-2000.0,0.000145,2]
[424693666,1781057439000,-1834.07049524,0.00013992,2]
[424693708,1781057439000,-303.06988692,0.00014505,2]
[424693660,1781057439000,-14041.73477318,0.00013913,2]
[424693662,1781057439000,-405.86,0.00013925,2]
[424693670,1781057439000,-860.70092285,0.00014012,2]
[424693668,1781057439000,-250.0,0.00014,2]
[424693769,1781057439000,-25000.0,0.00014856,3]
[424693672,1781057439000,-303.06988692,0.00014043,2]
[424693677,1781057439000,-14041.73477318,0.00014111,2]
[424693674,1781057439000,-7883.55661075,0.00014071,2]
[424693684,1781057439000,-2000.0,0.00014179,2]
[424693713,1781057439000,-181.614224,0.00014553,2]
[424693686,1781057439000,-255.0,0.00014224,2]
[424693700,1781057439000,-166.66,0.00014384,2]
[424693689,1781057439000,-7883.55661075,0.00014278,2]
[424693679,1781057439000,-160.22,0.00014119,2]
[424693682,1781057439000,-500.0,0.00014161,2]
[424693693,1781057439000,-477.63805442,0.00014307,2]
[424693691,1781057439000,-303.06988692,0.00014305,2]
[424693695,1781057439000,-14041.73477318,0.00014308,2]
[424693702,1781057439000,-300.32191475,0.00014429,2]
[424693704,1781057439000,-7883.55661075,0.00014486,2]
[424693698,1781057439000,-277.04628986,0.00014343,2]
[424693761,1781057439000,-5800.0,0.00014849,2]
[424693747,1781057439000,-303.06988692,0.00014814,2]
[424693766,1781057439000,-200.0,0.00014855,2]
[424693832,1781057439000,-163.0,0.0001488,2]
[424693830,1781057439000,-163.0,0.0001488,2]
[424693835,1781057439000,-163.0,0.0001488,2]
[424693837,1781057439000,-163.0,0.0001488,2]
[424693840,1781057439000,-25000.0,0.00014882,3]
[424693842,1781057439000,-5800.0,0.00014883,2]
[424693844,1781057439000,-1361.88324152,0.00014884,2]
[424693847,1781057439000,-1773.02539383,0.00014884,2]
[424693852,1781057439000,-25000.0,0.00014891,3]
[424693857,1781057439000,-395.62798355,0.00014899,2]
[424693854,1781057439000,-5800.0,0.00014891,2]
[424693866,1781057439000,-5800.0,0.000149,2]
[424693869,1781057439000,-11680.5794,0.000149,2]
[424693871,1781057439000,-2000.0,0.000149,2]
[424693873,1781057439000,-14041.73477318,0.000149,2]
[424693876,1781057439000,-860.70092285,0.000149,2]
[424693859,1781057439000,-500.0,0.00014899,2]
[424693878,1781057439000,-500.0,0.00014939,2]
[424693862,1781057439000,-25000.0,0.000149,3]
[424693864,1781057439000,-10000.0,0.000149,2]
[424693759,1781057439000,-25000.0,0.00014847,3]
[424693827,1781057439000,-522.84173849,0.00014875,2]
[424693825,1781057439000,-500.0,0.00014875,2]
[424693850,1781057439000,-251.03494238,0.00014884,2]
[424693813,1781057439000,-500.0,0.00014875,2]
[424693773,1781057439000,-3412.075,0.00014859,2]
[424693822,1781057439000,-500.0,0.00014875,2]
[424693776,1781057439000,-192.256,0.00014859,2]
[424693778,1781057439000,-1834.07049524,0.0001486,2]
[424693781,1781057439000,-25000.0,0.00014865,3]
[424693783,1781057439000,-5800.0,0.00014866,2]
[424693771,1781057439000,-5800.0,0.00014858,2]
[424693785,1781057439000,-25000.0,0.00014874,3]
[424693789,1781057439000,-5800.0,0.00014874,2]
[424693788,1781057439000,-350.0,0.00014874,2]
[424693792,1781057439000,-574.57860626,0.00014875,2]
[424693799,1781057439000,-502.29186961,0.00014875,2]
[424693797,1781057439000,-500.0,0.00014875,2]
[424693801,1781057439000,-353.59279344,0.00014875,2]
[424693806,1781057439000,-500.0,0.00014875,2]
[424693804,1781057439000,-500.0,0.00014875,2]
[424693811,1781057439000,-500.0,0.00014875,2]
[424693809,1781057439000,-500.0,0.00014875,2]
[424693818,1781057439000,-500.0,0.00014875,2]
[424693816,1781057439000,-500.0,0.00014875,2]
[424693794,1781057439000,-500.0,0.00014875,2]
[424693958,1781057440000,-500.0,0.00014999,2]
[424693955,1781057440000,-500.0,0.00014999,2]
[424693960,1781057440000,-539.28471487,0.00014999,2]
[424693941,1781057440000,-500.0,0.00014999,2]
[424693949,1781057440000,-500.0,0.00014999,2]
[424693953,1781057440000,-500.0,0.00014999,2]
[424693944,1781057440000,-500.0,0.00014999,2]
[424693963,1781057440000,-500.0,0.00014999,2]
[424693933,1781057440000,-500.0,0.00014999,2]
[424693946,1781057440000,-500.0,0.00014999,2]
[424693965,1781057440000,-500.0,0.00014999,2]
[424693982,1781057440000,-500.0,0.00014999,2]
[424693975,1781057440000,-500.0,0.00014999,2]
[424693977,1781057440000,-500.0,0.00014999,2]
[424693972,1781057440000,-500.0,0.00014999,2]
[424693970,1781057440000,-500.0,0.00014999,2]
[424693994,1781057440000,-500.0,0.00014999,2]
[424694010,1781057440000,-500.0,0.00014999,2]
[424693984,1781057440000,-500.0,0.00014999,2]
[424694004,1781057440000,-500.0,0.00014999,2]
[424694006,1781057440000,-500.0,0.00014999,2]
[424693951,1781057440000,-500.0,0.00014999,2]
[424693968,1781057440000,-176.6084939,0.00014999,2]
[424693939,1781057440000,-500.0,0.00014999,2]
[424693882,1781057440000,-447.0,0.00014964,2]
[424693935,1781057440000,-500.0,0.00014999,2]
[424694019,1781057440000,-500.0,0.00014999,2]
[424693880,1781057440000,-8831.0,0.00014959,2]
[424693889,1781057440000,-510.79675376,0.00014983,2]
[424693887,1781057440000,-768.0,0.00014972,2]
[424693885,1781057440000,-450.0,0.00014964,2]
[424693894,1781057440000,-12337.6125689,0.00014984,2]
[424693892,1781057440000,-479445.1406921,0.00014984,2]
[424693899,1781057440000,-309176.8384652,0.00014984,2]
[424693901,1781057440000,-193127.7462948,0.00014984,2]
[424693896,1781057440000,-2475.0724026,0.00014984,2]
[424693903,1781057440000,-5678.1804701,0.00014984,2]
[424693924,1781057440000,-500.0,0.00014999,2]
[424693926,1781057440000,-500.0,0.00014999,2]
[424693908,1781057440000,-1239.80561329,0.0001499,2]
[424693914,1781057440000,-184.70668,0.00014997,2]
[424693912,1781057440000,-184.70668,0.00014997,2]
[424693905,1781057440000,-1239.80561329,0.0001499,2]
[424693910,1781057440000,-184.70668,0.00014997,2]
[424693917,1781057440000,-232.91439081,0.00014999,2]
[424693919,1781057440000,-500.0,0.00014999,2]
[424693922,1781057440000,-500.0,0.00014999,2]
[424693928,1781057440000,-500.0,0.00014999,2]
[424693930,1781057440000,-500.0,0.00014999,2]
[424693937,1781057440000,-500.0,0.00014999,2]
[424694008,1781057440000,-500.0,0.00014999,2]
[424694079,1781057440000,-152.0,0.00015,2]
[424693987,1781057440000,-500.0,0.00014999,2]
[424694054,1781057440000,-2000.0,0.00015,2]
[424694061,1781057440000,-590.32,0.00015,2]
[424694069,1781057440000,-151.39009832,0.00015,2]
[424694067,1781057440000,-152.0,0.00015,2]
[424694072,1781057440000,-277.04628986,0.00015,2]
[424694063,1781057440000,-354.18,0.00015,2]
[424694065,1781057440000,-1003.78155081,0.00015,2]
[424694076,1781057440000,-152.0,0.00015,2]
[424694093,1781057440000,-151.0,0.00015,2]
[424694081,1781057440000,-151.0,0.00015,2]
[424694074,1781057440000,-152.0,0.00015,2]
[424694083,1781057440000,-151.0,0.00015,2]
[424694086,1781057440000,-151.0,0.00015,2]
[424694088,1781057440000,-172.17979501,0.00015,2]
[424694090,1781057440000,-151.0,0.00015,2]
[424694095,1781057440000,-151.0,0.00015,2]
[424694097,1781057440000,-151.0,0.00015,2]
[424694100,1781057440000,-151.0,0.00015,2]
[424694102,1781057440000,-226.142666,0.00015,2]
[424694109,1781057440000,-151.0,0.00015,2]
[424694104,1781057440000,-282.19036087,0.00015,2]
[424693999,1781057440000,-500.0,0.00014999,2]
[424694111,1781057440000,-151.0,0.00015,2]
[424694049,1781057440000,-2000.0,0.00015,2]
[424694056,1781057440000,-1200.0,0.00015,2]
[424694106,1781057440000,-151.0,0.00015,2]
[424694052,1781057440000,-800.0,0.00015,2]
[424693992,1781057440000,-500.0,0.00014999,2]
[424694058,1781057440000,-1416.76,0.00015,2]
[424693980,1781057440000,-500.0,0.00014999,2]
[424694017,1781057440000,-500.0,0.00014999,2]
[424694001,1781057440000,-500.0,0.00014999,2]
[424694012,1781057440000,-268.20526515,0.00014999,2]
[424694021,1781057440000,-500.0,0.00014999,2]
[424693989,1781057440000,-500.0,0.00014999,2]
[424694014,1781057440000,-500.0,0.00014999,2]
[424694025,1781057440000,-500.0,0.00014999,2]
[424694023,1781057440000,-300.0,0.00014999,2]
[424694029,1781057440000,-500.0,0.00014999,2]
[424693997,1781057440000,-500.0,0.00014999,2]
[424694046,1781057440000,-757.29,0.00015,2]
[424694031,1781057440000,-500.0,0.00014999,2]
[424694036,1781057440000,-250.0,0.00014999,2]
[424694047,1781057440000,-2000.0,0.00015,2]
[424694038,1781057440000,-2000.0,0.00014999,2]
[424694040,1781057440000,-5498239.14039406,0.00015,2]
[424694045,1781057440000,-351.8340851,0.00015,2]
[424694034,1781057440000,-329.28761505,0.00014999,2]
[424694044,1781057440000,-200.0,0.00015,5]
[424694042,1781057440000,-428.91431786,0.00015,2]
[424694027,1781057440000,-446.1546771,0.00014999,2]
[424694204,1781057441000,-500.0,0.00015,2]
[424694188,1781057441000,-500.0,0.00015,2]
[424694199,1781057441000,-500.0,0.00015,2]
[424694215,1781057441000,-500.0,0.00015,2]
[424694186,1781057441000,-500.0,0.00015,2]
[424694192,1781057441000,-500.0,0.00015,2]
[424694202,1781057441000,-500.0,0.00015,2]
[424694190,1781057441000,-500.0,0.00015,2]
[424694195,1781057441000,-500.0,0.00015,2]
[424694206,1781057441000,-500.0,0.00015,2]
[424694221,1781057441000,-500.0,0.00015,2]
[424694217,1781057441000,-500.0,0.00015,2]
[424694223,1781057441000,-500.0,0.00015,2]
[424694219,1781057441000,-500.0,0.00015,2]
[424694225,1781057441000,-500.0,0.00015,2]
[424694230,1781057441000,-500.0,0.00015,2]
[424694228,1781057441000,-500.0,0.00015,2]
[424694232,1781057441000,-500.0,0.00015,2]
[424694213,1781057441000,-500.0,0.00015,2]
[424694210,1781057441000,-500.0,0.00015,2]
[424694184,1781057441000,-500.0,0.00015,2]
[424694208,1781057441000,-500.0,0.00015,2]
[424694182,1781057441000,-500.0,0.00015,2]
[424694167,1781057441000,-500.0,0.00015,2]
[424694173,1781057441000,-500.0,0.00015,2]
[424694234,1781057441000,-500.0,0.00015,2]
[424694114,1781057441000,-151.0,0.00015,2]
[424694116,1781057441000,-2000.0,0.00015,2]
[424694129,1781057441000,-5259.416845,0.00015,2]
[424694132,1781057441000,-5259.416845,0.00015,2]
[424694118,1781057441000,-2000.0,0.00015,2]
[424694120,1781057441000,-1308.98,0.00015,2]
[424694122,1781057441000,-2000.0,0.00015,2]
[424694127,1781057441000,-1327.25,0.00015,2]
[424694125,1781057441000,-212.07,0.00015,2]
[424694142,1781057441000,-5259.416845,0.00015,2]
[424694150,1781057441000,-5259.416845,0.00015,2]
[424694152,1781057441000,-500.0,0.00015,2]
[424694154,1781057441000,-500.0,0.00015,2]
[424694169,1781057441000,-500.0,0.00015,2]
[424694176,1781057441000,-500.0,0.00015,2]
[424694165,1781057441000,-500.0,0.00015,2]
[424694156,1781057441000,-500.0,0.00015,2]
[424694178,1781057441000,-500.0,0.00015,2]
[424694158,1781057441000,-500.0,0.00015,2]
[424694163,1781057441000,-500.0,0.00015,2]
[424694171,1781057441000,-500.0,0.00015,2]
[424694161,1781057441000,-500.0,0.00015,2]
[424694180,1781057441000,-500.0,0.00015,2]
[424694237,1781057441000,-500.0,0.00015,2]
[424694197,1781057441000,-500.0,0.00015,2]
[424694252,1781057441000,-500.0,0.00015,2]
[424694289,1781057441000,-500.0,0.00015,2]
[424694298,1781057441000,-500.0,0.00015,2]
[424694300,1781057441000,-500.0,0.00015,2]
[424694302,1781057441000,-500.0,0.00015,2]
[424694304,1781057441000,-500.0,0.00015,2]
[424694306,1781057441000,-500.0,0.00015,2]
[424694308,1781057441000,-500.0,0.00015,2]
[424694310,1781057441000,-500.0,0.00015,2]
[424694318,1781057441000,-428.93408,0.00015,2]
[424694322,1781057441000,-1000.0,0.00015,2]
[424694320,1781057441000,-1000.0,0.00015,2]
[424694313,1781057441000,-500.0,0.00015,2]
[424694324,1781057441000,-1000.0,0.00015,2]
[424694327,1781057441000,-1000.0,0.00015,2]
[424694329,1781057441000,-2000.0,0.00015,2]
[424694315,1781057441000,-500.0,0.00015,2]
[424694333,1781057441000,-2000.0,0.00015,2]
[424694331,1781057441000,-1000.0,0.00015,2]
[424694336,1781057441000,-1000.0,0.00015,2]
[424694337,1781057441000,-2000.0,0.00015,2]
[424694343,1781057441000,-837.77,0.00015,2]
[424694342,1781057441000,-2000.0,0.00015,2]
[424694340,1781057441000,-1147.23,0.00015,2]
[424694290,1781057441000,-500.0,0.00015,2]
[424694293,1781057441000,-500.0,0.00015,2]
[424694239,1781057441000,-500.0,0.00015,2]
[424694291,1781057441000,-500.0,0.00015,2]
[424694286,1781057441000,-500.0,0.00015,2]
[424694241,1781057441000,-500.0,0.00015,2]
[424694246,1781057441000,-500.0,0.00015,2]
[424694254,1781057441000,-500.0,0.00015,2]
[424694243,1781057441000,-500.0,0.00015,2]
[424694248,1781057441000,-500.0,0.00015,2]
[424694250,1781057441000,-500.0,0.00015,2]
[424694259,1781057441000,-500.0,0.00015,2]
[424694269,1781057441000,-500.0,0.00015,2]
[424694276,1781057441000,-500.0,0.00015,2]
[424694273,1781057441000,-500.0,0.00015,2]
[424694256,1781057441000,-500.0,0.00015,2]
[424694265,1781057441000,-500.0,0.00015,2]
[424694263,1781057441000,-500.0,0.00015,2]
[424694278,1781057441000,-500.0,0.00015,2]
[424694280,1781057441000,-500.0,0.00015,2]
[424694295,1781057441000,-500.0,0.00015,2]
[424694261,1781057441000,-500.0,0.00015,2]
[424694267,1781057441000,-500.0,0.00015,2]
[424694284,1781057441000,-500.0,0.00015,2]
[424694282,1781057441000,-500.0,0.00015,2]
[424694287,1781057441000,-500.0,0.00015,2]
[424694288,1781057441000,-500.0,0.00015,2]
[424694271,1781057441000,-500.0,0.00015,2]
[424694423,1781057442000,-556.403067,0.00015068,2]
[424694420,1781057442000,-556.403067,0.00015068,2]
[424694412,1781057442000,-539.79057225,0.00015048,2]
[424694418,1781057442000,-252.10039827,0.00015061,10]
[424694405,1781057442000,-2000.0,0.0001503,2]
[424694414,1781057442000,-539.79057225,0.00015053,2]
[424694409,1781057442000,-403.29840768,0.00015033,2]
[424694407,1781057442000,-2000.0,0.0001503,2]
[424694425,1781057442000,-556.403067,0.00015068,2]
[424694416,1781057442000,-160.22,0.00015061,2]
[424694427,1781057442000,-556.403067,0.00015068,2]
[424694454,1781057442000,-210.22204623,0.00015239,2]
[424694434,1781057442000,-1555.5,0.00015111,2]
[424694429,1781057442000,-332.43807807,0.00015075,2]
[424694438,1781057442000,-539.79057225,0.00015144,2]
[424694443,1781057442000,-539.79057225,0.00015171,2]
[424694445,1781057442000,-539.79057225,0.00015185,2]
[424694436,1781057442000,-1066.90544707,0.00015114,2]
[424694441,1781057442000,-10000.0,0.00015147,2]
[424694447,1781057442000,-539.79057225,0.00015193,2]
[424694450,1781057442000,-539.79057225,0.00015223,2]
[424694452,1781057442000,-539.79057225,0.00015238,2]
[424694403,1781057442000,-2000.0,0.0001503,2]
[424694432,1781057442000,-539.79057225,0.00015089,2]
[424694401,1781057442000,-2000.0,0.0001503,2]
[424694377,1781057442000,-151.0,0.00015,2]
[424694394,1781057442000,-2000.0,0.0001501,2]
[424694457,1781057442000,-539.79057225,0.00015249,2]
[424694346,1781057442000,-978.01,0.00015,2]